fUSD/lending_fUSD_20250929
["ID","MTS","AMOUNT","RATE_DAILY","PERIOD"]
[388384351,1759141833876,-500.0,0.00019726,7]
[388384352,1759141833886,-150.0,0.00019726,7]
[388384353,1759141833896,-150.0,0.00019726,7]
[388384354,1759141833905,-150.0,0.00019726,7]
[388384355,1759141833915,-150.0,0.00019726,7]
[388384356,1759141833925,-500.0,0.00019726,7]
[388384357,1759141833934,-150.0,0.00019726,2]
[388384358,1759141833944,-150.0,0.00019726,7]
[388384359,1759141833955,-150.0,0.00019726,2]
[388384360,1759141833964,-468.0,0.00019726,7]
[388384361,1759141833974,-41876.41,0.00019726,2]
[388384362,1759141833984,-156.587,0.00019726,2]
[388384363,1759141833993,-1425.0,0.00019729,2]
[388384364,1759141834005,-2802.17334063,0.00019731,2]
[388384365,1759141834014,-1425.0,0.00019732,2]
[388384366,1759141834024,-1680.0,0.00019735,2]
[388384367,1759141834033,-1000.0,0.00019752,2]
[388384368,1759141834044,-1425.0,0.00019756,2]
[388384369,1759141834055,-2802.17334063,0.00019765,2]
[388384370,1759141834066,-222.14122822,0.00019768,2]
[388384377,1759141837302,-168.53934817,0.00019099,2]
[388384379,1759141837312,-435.42400096,0.00019099,2]
[388384381,1759141837321,-11980.44899075,0.00019696,2]
[388384383,1759141837334,-662.87238186,0.00019696,2]
[388384386,1759141837346,-1307.0651556,0.00019696,2]
[388384388,1759141837357,-463.48,0.00019696,2]
[388384394,1759141837413,-4495.13347179,0.00019696,2]
[388384395,1759141837423,-777.85877178,0.00019768,2]
[388384396,1759141837433,-168.0,0.00019773,2]
[388384397,1759141837442,-150.0,0.00019778,2]
[388384398,1759141837453,-168.0,0.0001978,2]
[388384399,1759141837463,-463.05956879,0.00019788,2]
[388384400,1759141837472,-1425.0,0.00019794,2]
[388384401,1759141837482,-369.45924736,0.00019794,2]
[388384402,1759141837492,-2802.17334063,0.00019799,2]
[388384403,1759141837502,-5000.0,0.000198,2]
[388384404,1759141837511,-300.0,0.000198,7]
[388384405,1759141837522,-154.3773668,0.000198,2]
[388384406,1759141837531,-463.05956874,0.00019804,2]
[388384407,1759141837540,-1000.0,0.00019805,2]
[388384408,1759141837550,-1000.0,0.00019805,2]
[388384409,1759141837561,-369.45924728,0.00019806,2]
[388384410,1759141837570,-1000.0,0.00019812,2]
[388384411,1759141837580,-369.45924728,0.00019818,2]
[388384412,1759141837589,-150.0,0.00019819,2]
[388384413,1759141837599,-463.05956874,0.0001982,2]
[388384414,1759141837608,-150.0,0.00019822,2]
[388384415,1759141837618,-150.0,0.00019828,2]
[388384416,1759141837628,-369.45924728,0.00019829,2]
[388384417,1759141837638,-150.0,0.00019832,2]
[388384418,1759141837647,-2049.24889275,0.00019832,2]
[388384419,1759141837660,-752.92444788,0.00019832,2]
[388384420,1759141837670,-255.06128752,0.00019836,2]
[388384421,1759141837682,-207.99828122,0.00019836,2]
[388384422,1759141837692,-722.54171878,0.00019837,2]
[388384426,1759141839382,-277.45828122,0.00019837,2]
[388384427,1759141839393,-1425.0,0.00019839,2]
[388384428,1759141839404,-150.0,0.0001984,2]
[388384429,1759141839415,-369.45924728,0.00019841,2]
[388384430,1759141839426,-1000.0,0.00019844,2]
[388384431,1759141839436,-150.0,0.0001985,2]
[388384432,1759141839447,-150.0,0.00019851,2]
[388384433,1759141839458,-135.83547108,0.00019852,2]
[388384434,1759141839470,-327.22409766,0.00019852,2]
[388384435,1759141839480,-369.45924728,0.00019853,2]
[388384436,1759141839490,-150.0,0.00019857,2]
[388384437,1759141839500,-1000.0,0.00019858,2]
[388384438,1759141839510,-369.45924728,0.00019865,2]
[388384439,1759141839520,-2802.17334063,0.00019866,2]
[388384440,1759141839530,-463.05956874,0.00019868,2]
[388384441,1759141839540,-1000.0,0.0001987,2]
[388384442,1759141839550,-500.0,0.0001987,2]
[388384443,1759141839560,-500.0,0.00019873,2]
[388384444,1759141839570,-500.0,0.00019873,2]
[388384445,1759141839580,-500.0,0.00019873,2]
[388384446,1759141839589,-500.0,0.00019873,2]
[388384447,1759141839599,-500.0,0.00019873,2]
[388384448,1759141839608,-500.0,0.00019873,2]
[388384449,1759141839617,-152.0,0.00019873,4]
[388384450,1759141839627,-369.45924728,0.00019876,2]
[388384451,1759141839637,-15000.0,0.0001988,2]
[388384452,1759141839647,-463.05956874,0.00019884,2]
[388384453,1759141839657,-478.55,0.00019888,2]
[388384454,1759141839667,-3504.25953482,0.00019888,2]
[388384455,1759141839680,-1547.02046518,0.00019888,2]
[388384456,1759141839689,-369.45924728,0.00019888,2]
[388384457,1759141839700,-217.5916067,0.0001989,2]
[388384458,1759141839709,-10617.96135127,0.00019891,2]
[388384459,1759141839721,-337.90446,0.00019891,2]
[388384460,1759141839733,-836.52223996,0.00019891,2]
[388384461,1759141839744,-312.63850009,0.00019891,2]
[388384464,1759141842512,-66905.15812568,0.00019891,2]
[388384465,1759141842523,-150.0,0.00019894,2]
[388384466,1759141842533,-150.0,0.00019894,2]
[388384467,1759141842543,-150.0,0.00019894,2]
[388384468,1759141842552,-1425.0,0.00019895,2]
[388384469,1759141842561,-384554.07591521,0.000199,2]
[388384470,1759141842571,-5000.0,0.000199,6]
[388384471,1759141842581,-200.0,0.000199,2]
[388384472,1759141842590,-683.55655654,0.000199,2]
[388384473,1759141842600,-1000.0,0.000199,2]
[388384474,1759141842609,-429234.95326979,0.000199,2]
[388384475,1759141842621,-714701.439561,0.000199,2]
[388384476,1759141842633,-151.0,0.000199,2]
[388384477,1759141842643,-151.0,0.000199,2]
[388384478,1759141842653,-1391.9768,0.000199,2]
[388384479,1759141842663,-369.45924728,0.000199,2]
[388384480,1759141842673,-611.0,0.000199,7]
[388384481,1759141842683,-1194.62,0.000199,2]
[388384482,1759141842693,-514.0347,0.000199,2]
[388384483,1759141842703,-9529.88464505,0.000199,2]
[388384484,1759141842712,-807.77499259,0.000199,2]
[388384485,1759141842722,-2802.17334063,0.000199,2]
[388384486,1759141842732,-1337.34470387,0.000199,2]
[388384487,1759141842742,-200.0,0.000199,2]
[388384488,1759141842752,-1098.21185537,0.000199,3]
[388384489,1759141842762,-1143.2153,0.000199,2]
[388384490,1759141842772,-463.05956874,0.000199,2]
[388384491,1759141842782,-174.91311306,0.000199,2]
[388384492,1759141842791,-45416.38505134,0.000199,2]
[388384493,1759141842801,-1454.32428514,0.00019921,2]
[388384494,1759141842811,-1496.20792433,0.00019973,2]
[388384495,1759141842821,-500.0,0.00019973,2]
[388384496,1759141842830,-500.0,0.00019973,2]
[388384497,1759141842840,-160.24025986,0.00019973,2]
[388384498,1759141842850,-500.0,0.00019973,2]
[388384499,1759141842860,-560.72495636,0.00019973,2]
[388384500,1759141842870,-500.0,0.00019973,2]
[388384501,1759141842879,-500.0,0.00019973,2]
[388384502,1759141842891,-571.86697367,0.00019973,2]
[388384503,1759141842901,-500.0,0.00019973,2]
[388384504,1759141842910,-500.0,0.00019973,2]
[388384505,1759141842920,-500.0,0.00019973,2]
[388384506,1759141842930,-500.0,0.00019973,2]
[388384507,1759141842939,-500.0,0.00019973,2]
[388384508,1759141842949,-172.44651202,0.00019973,2]
[388384509,1759141842959,-167.84790287,0.00019973,2]
[388384510,1759141842968,-500.0,0.00019973,2]
[388384511,1759141842978,-500.0,0.00019973,2]
[388384512,1759141842988,-500.0,0.00019973,2]
[388384513,1759141842998,-500.0,0.00019973,2]
[388384514,1759141843012,-500.0,0.00019973,2]
[388384515,1759141843022,-500.0,0.00019973,2]
[388384516,1759141843031,-500.0,0.00019973,2]
[388384517,1759141843043,-500.0,0.00019973,2]
[388384518,1759141843052,-500.0,0.00019973,2]
[388384519,1759141843062,-500.0,0.00019973,2]
[388384520,1759141843072,-570.50939943,0.00019973,2]
[388384521,1759141843084,-547.25014336,0.00019973,2]
[388384522,1759141843094,-500.86166811,0.00019973,2]
[388384523,1759141843104,-500.0,0.00019973,2]
[388384524,1759141843114,-500.0,0.00019973,2]
[388384525,1759141843125,-500.0,0.00019973,2]
[388384526,1759141843136,-500.0,0.00019973,2]
[388384527,1759141843147,-500.0,0.00019973,2]
[388384528,1759141843157,-500.0,0.00019973,2]
[388384529,1759141843166,-500.0,0.00019973,2]
[388384530,1759141843176,-500.0,0.00019973,2]
[388384531,1759141843186,-500.0,0.00019973,2]
[388384532,1759141843195,-500.0,0.00019973,2]
[388384533,1759141843205,-500.0,0.00019973,2]
[388384534,1759141843216,-500.0,0.00019973,2]
[388384535,1759141843225,-500.0,0.00019973,2]
[388384536,1759141843235,-500.0,0.00019973,2]
[388384537,1759141843244,-500.0,0.00019973,2]
[388384538,1759141843254,-500.0,0.00019973,2]
[388384539,1759141843263,-500.0,0.00019973,2]
[388384540,1759141843273,-169.92915653,0.00019973,2]
[388384541,1759141843282,-513.53744754,0.00019973,2]
[388384542,1759141843292,-500.0,0.00019973,2]
[388384543,1759141843301,-500.0,0.00019973,2]
[388384544,1759141843311,-500.0,0.00019973,2]
[388384545,1759141843321,-500.0,0.00019973,2]
[388384546,1759141843331,-500.0,0.00019973,2]
[388384547,1759141843341,-500.56999013,0.00019973,2]
[388384548,1759141843351,-150.0,0.00019973,2]
[388384549,1759141843361,-500.0,0.00019973,2]
[388384550,1759141843377,-500.0,0.00019973,2]
[388384551,1759141843387,-257.60398807,0.00019973,2]
[388384552,1759141843397,-500.0,0.00019973,2]
[388384553,1759141843407,-500.0,0.00019973,2]
[388384554,1759141843417,-150.0,0.00019973,2]
[388384555,1759141843428,-150.0,0.00019973,2]
[388384556,1759141843438,-150.0,0.00019973,2]
[388384557,1759141843448,-500.0,0.00019973,2]
[388384558,1759141843458,-150.0,0.00019973,2]
[388384559,1759141843469,-150.0,0.00019973,2]
[388384560,1759141843479,-500.0,0.00019973,2]
[388384561,1759141843490,-150.0,0.00019973,2]
[388384562,1759141843500,-500.0,0.00019973,2]
[388384563,1759141843510,-150.0,0.00019973,2]
[388384564,1759141843520,-150.0,0.00019973,2]
[388384565,1759141843530,-150.0,0.00019973,2]
[388384566,1759141843540,-150.0,0.00019973,2]
[388384567,1759141843550,-150.0,0.00019973,2]
[388384568,1759141843560,-152.83010698,0.00019973,2]
[388384569,1759141843570,-217.5916067,0.0001999,2]
[388384570,1759141843580,-217.5916067,0.0001999,2]
[388384571,1759141843590,-1500.0,0.00019996,2]
[388384572,1759141843600,-209.88488336,0.00019996,2]
[388384573,1759141843610,-10000.0,0.00019999,2]
[388384574,1759141843621,-150.0,0.00019999,2]
[388384575,1759141843631,-19172.1853043,0.0002,2]
[388384576,1759141843640,-1000.0,0.0002,2]
[388384577,1759141843650,-447.0,0.0002,7]
[388384578,1759141843660,-163.3991785,0.0002,7]
[388384579,1759141843670,-500.0,0.0002,2]
[388384580,1759141843681,-2361.0,0.0002,7]
[388384581,1759141843690,-608.0,0.0002,7]
[388384582,1759141843701,-150.0,0.0002,7]
[388384583,1759141843711,-500.0,0.0002,7]
[388384584,1759141843721,-421.0,0.0002,7]
[388384585,1759141843731,-500.0,0.0002,2]
[388384586,1759141843741,-2364.0,0.0002,7]
[388384587,1759141843751,-150.0,0.0002,7]
[388384588,1759141843765,-500.0,0.0002,7]
[388384589,1759141843775,-500.0,0.0002,7]
[388384590,1759141843785,-150.0,0.0002,7]
[388384591,1759141843795,-500.0,0.0002,7]
[388384592,1759141843805,-150.0,0.0002,7]
[388384593,1759141843816,-500.0,0.0002,7]
[388384594,1759141843826,-290.96620018,0.0002,7]
[388384595,1759141843836,-468.0,0.0002,7]
[388384596,1759141843846,-150.0,0.0002,4]
[388384597,1759141843857,-20606.9646226,0.0002,2]
[388384600,1759141845430,-458.55657346,0.0002,2]
[388384601,1759142226545,-500.0,0.000159,2]
[388384602,1759142235590,-1000.0,0.000168,2]
[388384610,1759142962495,157.61,8.201e-05,2]
[388384611,1759142962689,157.61,0.00010251,2]
[388384612,1759142962890,157.61,0.00012301,2]
[388384613,1759142963081,157.61,0.00014352,2]
[388384614,1759142967353,200.0,0.000255,120]
[388384618,1759143031530,-150.0,0.00015288,2]
[388384619,1759143031541,-150.0,0.00015288,2]
[388384620,1759143031551,-150.0,0.00015288,2]
[388384621,1759143031560,-158.55250353,0.00015288,2]
[388384622,1759143031570,-150.0,0.00015288,2]
[388384623,1759143031579,-150.0,0.00015288,2]
[388384624,1759143031591,-150.0,0.00015288,2]
[388384625,1759143031601,-150.0,0.00015288,2]
[388384626,1759143031610,-150.0,0.00015288,2]
[388384627,1759143031620,-150.0,0.00015288,2]
[388384628,1759143031630,-150.0,0.00015288,2]
[388384629,1759143031639,-175.18925891,0.000154,2]
[388384630,1759143031649,-953.99672911,0.000155,2]
[388384631,1759143031661,-1046.00327089,0.000155,2]
[388384632,1759143031671,-250.0,0.000155,2]
[388384633,1759143031681,-91.70830578,0.00015712,2]
[388384634,1759143031692,-58.29169422,0.00015712,2]
[388384635,1759143031702,-500.0,0.00015756,2]
[388384636,1759143031711,-500.0,0.00015756,2]
[388384637,1759143031721,-500.0,0.00015756,2]
[388384638,1759143031730,-500.0,0.00015756,2]
[388384639,1759143031740,-623.81683486,0.00015756,2]
[388384640,1759143031749,-2000.0,0.00015758,2]
[388384641,1759143031763,-1320.0,0.00015758,2]
[388384642,1759143031773,-500.0,0.000158,2]
[388384643,1759143031782,-150.0,0.00015854,2]
[388384644,1759143031791,-150.0,0.00015854,2]
[388384645,1759143031801,-150.0,0.00016137,2]
[388384646,1759143031810,-150.0,0.00016137,2]
[388384647,1759143031820,-150.0,0.00016137,2]
[388384648,1759143031829,-150.0,0.00016137,2]
[388384649,1759143031839,-150.0,0.00016137,2]
[388384650,1759143031849,-157.61,0.00016402,2]
[388384652,1759143031859,-150.0,0.0001642,2]
[388384654,1759143031868,-150.0,0.0001642,2]
[388384655,1759143031878,-2366.78371201,0.00016561,2]
[388384656,1759143031888,-150.0,0.00016562,2]
[388384657,1759143031897,-11568.7,0.00016706,2]
[388384659,1759143031907,-550.0,0.00016815,2]
[388384661,1759143031917,-2000.0,0.00016816,2]
[388384663,1759143031926,-305.5565728,0.00016816,2]
[388384665,1759143031936,-250.0,0.00016816,2]
[388384667,1759143031946,-195.0,0.00016816,2]
[388384669,1759143031955,-391.28009796,0.00016816,2]
[388384671,1759143031965,-8672.62343971,0.000169,2]
[388384673,1759143031975,-10790.77084183,0.000169,2]
[388384675,1759143031987,-606.64638681,0.000169,2]
[388384681,1759143031999,-2955.52680034,0.000169,2]
[388384685,1759143032011,-17126.39528641,0.000169,2]
[388384688,1759143032020,-590.73069731,0.000169,2]
[388384691,1759143032029,-500.0,0.00016973,2]
[388384694,1759143032039,-500.0,0.00016973,2]
[388384697,1759143032050,-500.0,0.00016973,2]
[388384699,1759143032060,-500.0,0.00016973,2]
[388384701,1759143032070,-500.0,0.00016973,2]
[388384703,1759143032079,-500.0,0.00016973,2]
[388384705,1759143032089,-500.0,0.00016973,2]
[388384706,1759143032099,-517.74368039,0.00016973,2]
[388384707,1759143032108,-500.0,0.00016973,2]
[388384708,1759143032117,-500.0,0.00016973,2]
[388384709,1759143032126,-500.0,0.00016973,2]
[388384710,1759143032136,-507.44062365,0.00016973,2]
[388384711,1759143032145,-500.0,0.00016973,2]
[388384712,1759143032157,-500.0,0.00016973,2]
[388384713,1759143032166,-500.0,0.00016973,2]
[388384714,1759143032175,-282.65294163,0.00016974,2]
[388384715,1759143032184,-150.0,0.00016986,2]
[388384716,1759143032593,-150.0,0.00016986,2]
[388384717,1759143032605,-150.00000001,0.00016986,2]
[388384718,1759143032615,-150.0,0.00016986,2]
[388384719,1759143032626,-152.43988675,0.00016986,2]
[388384720,1759143032636,-150.0,0.00016986,2]
[388384721,1759143032646,-260.3945121,0.00016986,2]
[388384722,1759143032656,-150.0,0.00016986,2]
[388384723,1759143032665,-150.0,0.00016986,2]
[388384724,1759143032675,-175.25,0.0001699,2]
[388384725,1759143032685,-155.0,0.00016999,2]
[388384726,1759143032695,-295.15569519,0.00016999,2]
[388384727,1759143032704,-331.59611382,0.00016999,2]
[388384728,1759143032714,-500.0,0.00016999,2]
[388384729,1759143032724,-157.43991586,0.00016999,2]
[388384730,1759143032733,-500.0,0.00016999,2]
[388384731,1759143032743,-59556.75897341,0.00017,2]
[388384732,1759143032754,-10836.54013501,0.00017,2]
[388384733,1759143032771,-27338.67155439,0.00017,2]
[388384737,1759143037544,-291.53520387,0.00015755,2]
[388384738,1759143037554,-8755.27237712,0.00017,2]
[388384739,1759143037816,-95763.89606714,0.00017,2]
[388384888,1759143039593,-500.0,0.000157,2]
[388384890,1759143039603,-3104597.34063557,0.00017,2]
[388384919,1759143039858,-3018.11247565,0.00017,2]
[388384925,1759143039914,-764.0,0.00017,2]
[388385218,1759143042692,-671032.15035584,0.00017,2]
[388385222,1759143043120,-332.908,0.00017,2]
[388385229,1759143043176,-418.83661295,0.00017,2]
[388385231,1759143043187,-379.97327152,0.00017,2]
[388385237,1759143043225,-279.3450855,0.00017,2]
[388385239,1759143043241,-2086.48633524,0.00017,2]
[388385780,1759143685899,-500.0,0.00015188,2]
[388385781,1759143685934,-250.0,0.00015882,2]
[388385782,1759143685968,-324.328952,0.00016068,2]
[388385783,1759143686002,-1200.0,0.0001623,2]
[388385784,1759143686038,-300.0,0.0001623,2]
[388385785,1759143686070,-1546.86986611,0.00016231,2]
[388385786,1759143686083,-500.0,0.00016231,2]
[388385787,1759143686093,-250.0,0.00016231,2]
[388385788,1759143686104,-324.328952,0.00016231,2]
[388385789,1759143686116,-1200.0,0.00016231,2]
[388385790,1759143686127,-300.0,0.00016231,2]
[388385791,1759143686161,-8304.47222989,0.00016231,2]
[388385792,1759143724777,6000.0,0.0001856,30]
[388385795,1759143921532,162.22,7.93e-05,2]
[388385799,1759144231726,-186.93542138,0.00015188,2]
[388385800,1759144231739,-300.0,0.00015287,2]
[388385801,1759144231749,-1200.0,0.00015287,2]
[388385802,1759144231761,-150.34894363,0.00015288,2]
[388385803,1759144231771,-150.0,0.00015288,2]
[388385804,1759144231781,-150.0,0.00015288,2]
[388385805,1759144231792,-62.71563499,0.00015288,2]
[388385806,1759144231803,-87.28436501,0.00015288,2]
[388385807,1759144231813,-150.39524284,0.00015288,2]
[388385808,1759144231823,-150.0,0.00015288,2]
[388385809,1759144231833,-18.27829099,0.00015288,2]
[388385810,1759144231850,-131.72170902,0.00015288,2]
[388385811,1759144231859,-190.48046651,0.00015288,2]
[388385812,1759144231868,-61.30449019,0.00015288,2]
[388385813,1759144231882,-88.69550982,0.00015288,2]
[388385814,1759144231891,-150.0,0.00015288,2]
[388385815,1759144231901,-47.90876288,0.00015288,2]
[388385816,1759144231913,-102.09123712,0.00015288,2]
[388385817,1759144231922,-150.0,0.00015288,2]
[388385818,1759144231931,-150.41000677,0.00015288,2]
[388385819,1759144231940,-150.0,0.00015288,2]
[388385820,1759144231950,-150.0,0.00015288,2]
[388385821,1759144231959,-150.0,0.00015288,2]
[388385822,1759144231968,-150.0,0.0001553,2]
[388385823,1759144231977,-440.09,0.00015669,2]
[388385824,1759144231987,-150.0,0.00015712,2]
[388385825,1759144231996,-150.0,0.00015773,2]
[388385827,1759144232006,-150.0,0.00015854,2]
[388385829,1759144232016,-150.0,0.00015854,2]
[388385831,1759144232026,-220.129831,0.00015935,2]
[388385834,1759144232035,-150.0,0.00016016,2]
[388385836,1759144232046,-150.0,0.00016137,2]
[388385838,1759144232056,-150.0,0.00016137,2]
[388385840,1759144232067,-150.0,0.00016137,2]
[388385842,1759144232080,-179.85306497,0.00016149,2]
[388385844,1759144232089,-550.0,0.0001623,2]
[388385846,1759144232099,-13439.38801903,0.00016231,2]
[388385848,1759144232108,-150.0,0.00016258,2]
[388385850,1759144232118,-4153.5,0.00016315,2]
[388385852,1759144232128,-57.63598634,0.00016344,2]
[388385854,1759144232146,-142.36401366,0.00016344,2]
[388385856,1759144232156,-150.0,0.0001642,2]
[388385858,1759144232166,-150.0,0.0001642,2]
[388385860,1759144232176,-277.86,0.00016438,2]
[388385863,1759144232187,-500.0,0.00016438,2]
[388385865,1759144232197,-440.09,0.00016453,2]
[388385868,1759144232207,-150.0,0.00016501,2]
[388385870,1759144232217,-1000.0,0.00016518,2]
[388385873,1759144232226,-529.09,0.00016545,2]
[388385876,1759144232236,-150.0,0.00016562,2]
[388385878,1759144232246,-1847.575,0.00016607,2]
[388385881,1759144232256,-171.662,0.00016607,2]
[388385883,1759144232266,-150.0,0.00016623,7]
[388385885,1759144232276,-195.0,0.00016706,2]
[388385887,1759144232286,-2000.0,0.00016707,2]
[388385889,1759144232296,-28.21251997,0.00016726,2]
[388385891,1759144232308,-391.78748003,0.00016726,2]
[388385893,1759144232317,-150.0,0.00016744,2]
[388385895,1759144232327,-1680.0,0.0001681,2]
[388385897,1759144232337,-172.50716045,0.000169,2]
[388385899,1759144232348,-169.9254935,0.000169,2]
[388385901,1759144232357,-6220.95409048,0.000169,2]
[388385909,1759144237652,-11777.97253052,0.000169,2]
[388385912,1759144237705,-9837.32694211,0.000169,2]
[388385913,1759144237716,-1095.92560844,0.000169,2]
[388385914,1759144237726,-159.11228853,0.000169,2]
[388385915,1759144237736,-1644.98074789,0.000169,2]
[388385916,1759144237746,-500.0,0.00016973,2]
[388385917,1759144237756,-500.0,0.00016973,2]
[388385918,1759144237767,-500.0,0.00016973,2]
[388385919,1759144237778,-500.0,0.00016973,2]
[388385920,1759144237788,-500.0,0.00016973,2]
[388385921,1759144237799,-240.32538896,0.00016973,2]
[388385922,1759144237813,-259.67461104,0.00016973,2]
[388385923,1759144237823,-300.0,0.00016973,2]
[388385924,1759144237833,-500.0,0.00016973,2]
[388385925,1759144237843,-500.0,0.00016973,2]
[388385926,1759144237852,-500.0,0.00016973,2]
[388385927,1759144237862,-500.0,0.00016973,2]
[388385928,1759144237872,-500.0,0.00016973,2]
[388385929,1759144237880,-500.0,0.00016973,2]
[388385930,1759144237891,-500.0,0.00016973,2]
[388385931,1759144237900,-500.0,0.00016973,2]
[388385932,1759144237910,-503.78209487,0.00016973,2]
[388385933,1759144237919,-500.0,0.00016973,2]
[388385934,1759144237928,-500.0,0.00016973,2]
[388385935,1759144237938,-500.0,0.00016973,2]
[388385936,1759144237947,-500.0,0.00016973,2]
[388385937,1759144237956,-500.0,0.00016973,2]
[388385938,1759144237966,-282.72023133,0.00016973,2]
[388385940,1759144237975,-979.17,0.00016973,2]
[388385942,1759144237984,-640.3,0.00016979,3]
[388385944,1759144237993,-150.0,0.00016986,2]
[388385945,1759144238003,-229.52641441,0.00016986,2]
[388385947,1759144238012,-150.0,0.00016986,2]
[388385949,1759144238022,-150.0,0.00016986,2]
[388385951,1759144238032,-150.0,0.00016986,2]
[388385953,1759144238041,-150.0,0.00016986,2]
[388385955,1759144238052,-150.0,0.00016986,2]
[388385956,1759144238062,-150.0,0.00016986,2]
[388385957,1759144238072,-150.0,0.00016986,2]
[388385958,1759144238082,-151.0,0.0001699,2]
[388385959,1759144238097,-151.0,0.0001699,2]
[388385960,1759144238107,-151.0,0.0001699,2]
[388385961,1759144238117,-151.0,0.0001699,2]
[388385962,1759144238127,-151.0,0.0001699,2]
[388385963,1759144238136,-151.0,0.0001699,2]
[388385964,1759144238146,-200.0,0.0001699,2]
[388385965,1759144238156,-151.0,0.0001699,2]
[388385966,1759144238166,-151.0,0.0001699,2]
[388385967,1759144238176,-151.0,0.0001699,2]
[388385968,1759144238185,-151.0,0.0001699,2]
[388385969,1759144238195,-151.0,0.0001699,2]
[388385970,1759144238205,-151.0,0.0001699,2]
[388385971,1759144238214,-151.0,0.0001699,2]
[388385972,1759144238224,-151.0,0.0001699,2]
[388385973,1759144238234,-151.0,0.0001699,2]
[388385974,1759144238243,-151.0,0.0001699,2]
[388385975,1759144238252,-247.6243839,0.0001699,2]
[388385976,1759144238262,-500.0,0.0001699,2]
[388385977,1759144238272,-500.0,0.0001699,2]
[388385978,1759144238281,-500.0,0.0001699,2]
[388385979,1759144238291,-500.0,0.0001699,2]
[388385980,1759144238300,-500.0,0.0001699,2]
[388385981,1759144238310,-500.0,0.0001699,2]
[388385982,1759144238320,-500.0,0.0001699,2]
[388385983,1759144238329,-440.01925053,0.0001699,2]
[388385984,1759144238339,-341.34339612,0.0001699,2]
[388385985,1759144238348,-226.70566694,0.0001699,2]
[388385986,1759144238358,-300.0,0.0001699,2]
[388385987,1759144238367,-206.92756279,0.0001699,2]
[388385988,1759144238377,-279.08656981,0.00016996,2]
[388385989,1759144238387,-206.60898663,0.00016996,2]
[388385990,1759144238397,-500.0,0.00016996,2]
[388385991,1759144238407,-259.33811867,0.00016996,2]
[388385992,1759144238420,-327.00844191,0.00016996,2]
[388385993,1759144238430,-193.35618942,0.00016996,2]
[388385994,1759144238439,-439.49692527,0.00016997,2]
[388385995,1759144238478,-531.63683674,0.00016997,2]
[388386003,1759144240144,-20708.01288279,0.00016997,2]
[388386005,1759144240155,-312.6385002,0.00016999,2]
[388386008,1759144240164,-6513.018901,0.00016999,2]
[388386010,1759144240174,-749.2992208,0.00016999,2]
[388386012,1759144240184,-300.0,0.00016999,2]
[388386014,1759144240194,-10000.0,0.00016999,2]
[388386016,1759144240204,-300.0,0.00016999,2]
[388386018,1759144240213,-300.0,0.00016999,2]
[388386019,1759144240223,-666.0,0.00016999,2]
[388386020,1759144240233,-3406366.6748615,0.00017,2]
[388386022,1759144240246,-252.636388,0.00017,2]
[388386023,1759144240279,-1155.7,0.00017,2]
[388386027,1759144242861,-5062.83715868,0.00017,2]
[388386028,1759144242873,-12252.82687602,0.00017,2]
[388386029,1759144242945,-1129300.00000073,0.00017,2]
[388386030,1759144243056,-4161824.47221079,0.00017,2]